Cogmind - Beta 11 @@@ ROGUE MODE // 2022.04.15 @ 17:07:14 Player: s0lid Result: Destroyed by PD-2AYMPKOTWQ with Ragnarok Missile Launcher Performance ------------- Evolutions (8) 4000 Regions Visited (13) 2600 Robots Destroyed (26) 130 Value Destroyed (566) 566 Prototype IDs (11) 220 Alien Tech Used (0) 0 Bonus (500) 500 TOTAL SCORE: 8016 Bonus ------- Entered DSFs 500 Cogmind --------- Core Integrity 0/1450 Matter 123/300 Energy 100/100 System Corruption 12% Temperature Cool (0) Movement Core (50) Location -2/Testing Parts ------- > --- POWER (2) -------- (None) > --- PROPULSION (6) --- (None) > --- UTILITY (12) ----- (None) > --- WEAPON (3) ------- (None) > --- INVENTORY (5) ---- Advanced Coolant Injector Energy Well (350) Advanced Transmission Jammer Railgun Peak State ------------ > --- POWER ------------ Improved Fusion Compressor Micro Antimatter Reactor > --- PROPULSION ------- Nuclear Pulse Thruster Impulse Thruster Impulse Thruster Impulse Thruster Advanced Surge Thruster > --- UTILITY ---------- Advanced Cryofiber Web Small Storage Unit Energy Well Compact Matter Pod Advanced Visual Processing Unit Advanced Transmission Jammer Improved Phase Shifter Graphene Brace Advanced Focal Shield Point Defense System > --- WEAPON ----------- (None) > --- INVENTORY -------- Advanced Coolant Injector Advanced Transmission Jammer Hacking Suite Trap Extractor Wave Gun Railgun Remote Datajack [Rating: 104] Favorites ----------- Power Micro Nuclear Core Engine Light Ion Engine Power Core Micro Nuclear Core Reactor Micro Antimatter Reactor Propulsion VTOL Module Treads Advanced Heavy Treads Leg Aluminum Leg Wheel Centrium Wheel Hover Unit Improved Airjet Flight Unit VTOL Module Utility Small Storage Unit Device Point Defense System Storage Small Storage Unit Processor Advanced Visual Processing Unit Hackware Hacking Suite Protection Improved Propulsion Shielding Weapon Precision Beam Rifle Energy Gun Precision Beam Rifle Ballistic Gun Enhanced Autogun Special Weapon Remote Datajack Special Melee Weapon Datajack Build | -11 -10 -9 -8 -7 -6 -6 -5 -4 -4 -4 -3 -2 -2 ------- Run | Scr Mat Mat Mat Fac Fac DSF Fac Fac Upp Upp Res Res Tes Slots Evolved 16 | . . 2 2 2 2 . 2 2 . . 2 2 . Power 1 | . . . . . . . 1 . . . . . . Propulsion 4 | . . 1 . 1 . . . 2 . . . . . Utility 10 | . . 1 2 . 2 . 1 . . . 2 2 . Weapon 1 | . . . . 1 . . . . . . . . . Parts Attached 131 | 8 18 6 10 33 . 5 13 15 3 . 13 3 4 Power 18 | 1 4 . . 7 . . 2 2 . . 2 . . Engine 8 | 1 1 . . 5 . . . 1 . . . . . Core 9 | . 3 . . 2 . . 2 1 . . 1 . . Reactor 1 | . . . . . . . . . . . 1 . . Propulsion 37 | 2 7 1 1 9 . 1 5 4 1 . 4 1 1 Treads 1 | . . . . . . . . . . . 1 . . Leg 7 | 2 2 . . . . . . . . . 1 1 1 Wheel 1 | . . . . . . . . 1 . . . . . Hover 8 | . 2 . . 4 . . 2 . . . . . . Flight 20 | . 3 1 1 5 . 1 3 3 1 . 2 . . Utility 46 | 2 2 3 3 12 . 3 3 7 2 . 6 2 1 Device 32 | 1 2 3 2 6 . 1 2 7 1 . 5 1 1 Storage 6 | 1 . . 1 1 . . 1 . 1 . 1 . . Processor 5 | . . . . 4 . 1 . . . . . . . Hackware 2 | . . . . . . 1 . . . . . 1 . Protection 1 | . . . . 1 . . . . . . . . . Artifact . | . . . . . . . . . . . . . . Weapon 30 | 3 5 2 6 5 . 1 3 2 . . 1 . 2 Energy Gun 13 | 1 2 1 2 2 . 1 2 . . . . . 2 Energy Cannon . | . . . . . . . . . . . . . . Ballistic Gun 5 | 2 1 . 1 1 . . . . . . . . . Ballistic Cannon . | . . . . . . . . . . . . . . Launcher . | . . . . . . . . . . . . . . Special Weapon 9 | . 2 . 2 1 . . 1 2 . . 1 . . Impact Weapon . | . . . . . . . . . . . . . . Slashing Weapon . | . . . . . . . . . . . . . . Piercing Weapon . | . . . . . . . . . . . . . . Special Melee Weapon 3 | . . 1 1 1 . . . . . . . . . Unidentified Prototypes 11 | . . . 2 5 . . . 1 . . . 1 2 Parts Lost 38 | . 5 . . 6 . 6 3 1 1 . 9 4 3 Power 6 | . . . . 3 . . . 1 . . 1 1 . Propulsion 13 | . 2 . . 1 . 3 . . . . 3 2 2 Utility 12 | . . . . 2 . 2 2 . 1 . 4 1 . Weapon 7 | . 3 . . . . 1 1 . . . 1 . 1 Highest Loss Streak 6 | . 5 . . 3 . 6 3 1 1 . 5 4 2 To Critical Strikes . | . . . . . . . . . . . . . . Average Slot Usage (%) 77 | . 93 89 86 91 . 73 65 83 88 89 72 46 6 Engine 2 | . 10 . . 1 . . . . 5 5 . . . Core 3 | . 4 11 9 3 . 6 4 2 5 5 3 3 . Leg 2 | . 12 . . . . . . . . . 1 . 5 Hover 2 | . 3 . . 7 . . 3 . . . . . . Flight 17 | . 10 33 27 22 . 26 11 20 26 26 20 11 . Device 16 | . 18 23 28 13 . 6 5 22 25 26 25 17 . Storage 6 | . 9 . 4 6 . 6 6 8 9 10 9 6 . Processor 7 | . . . . 12 . 13 17 10 5 5 4 3 . Protection 1 | . . . . 2 . 6 4 . . . . . . Energy Gun 5 | . 14 11 4 5 . . 4 5 5 5 1 . . Ballistic Gun 2 | . 5 . . 6 . 4 . . . . . . . Special Weapon 3 | . 4 7 4 3 . . 2 7 5 5 1 . . Naked Turns 42 | . . . . . . . . . . . . 5 37 Heaviest Build 31 | 15 15 11 13 19 18 18 26 31 30 30 31 20 . Greatest Support 46 | 20 20 12 13 25 20 20 46 32 37 30 37 20 3 Greatest Overweight (x) 4 | 4 3 . . 1 . 1 . 1 . . 1 . . Average Overweight (x) . | . . . . . . . . . . . . . . Largest Inventory Capacity 8 | 8 8 5 5 8 8 8 8 8 8 8 8 8 5 Average Capacity 7 | 7 6 5 5 7 8 8 8 8 8 8 8 7 5 Most Carried 8 | 8 8 5 5 8 8 8 8 8 8 7 8 8 5 Average Carried 7 | 4 6 4 4 7 8 7 7 7 7 7 7 6 4 Final Capacity 8 | 8 5 5 5 8 8 8 8 8 8 8 8 5 5 Final Carried 8 | 8 5 5 5 8 8 7 8 8 7 7 8 5 4 Class Distribution -------------------- 45% | Mutant 30% | Sprinter 11% | Scout 8% | Infiltrator-Sprinter 3% | Infiltrator-Mutant Dominant Class ---------------- Mutant | -10/Materials Sprinter | -9/Materials Infiltrator-Sprinter | -8/Materials Sprinter | -7/Factory Sprinter | -6/Factory Sprinter | -6/DSF Sprinter | -5/Factory Mutant | -4/Factory Infiltrator-Sprinter | -4/Upper Caves Infiltrator-Sprinter | -4/Upper Caves Infiltrator-Mutant | -3/Research Mutant | -2/Research Mutant | -2/Testing Resources | -11 -10 -9 -8 -7 -6 -6 -5 -4 -4 -4 -3 -2 -2 ----------- Run | Scr Mat Mat Mat Fac Fac DSF Fac Fac Upp Upp Res Res Tes Matter Collected 1548 | 209 160 44 49 581 . 19 132 111 207 . . . 36 Remotely 66 | . . . 20 46 . . . . . . . . . Salvage Created 1127 | 135 247 44 . 616 . 12 . 21 16 . . . 36 Parts 75 | 11 10 3 . 45 . . . 4 1 . . . 1 Haulers Intercepted 4 | . 1 . . 3 . . . . . . . . . Recyclers Shooed 1 | . . . . 1 . . . . . . . . . Parts Field Recycled 3 | . . . . . . . . 3 . . . . . Retrieved Matter 219 | . . . . . . . . 219 . . . . . Parts Self-Destructed . | . . . . . . . . . . . . . . Prevented 1 | . . . . . . . . . 1 . . . . Kills | -11 -10 -9 -8 -7 -6 -6 -5 -4 -4 -4 -3 -2 -2 ------- Run | Scr Mat Mat Mat Fac Fac DSF Fac Fac Upp Upp Res Res Tes Combat Hostiles Destroyed 9 | . 4 1 . 3 . . . . . . . . 1 Guns 9 | . 4 1 . 3 . . . . . . . . 1 Classes Destroyed 9 | 2 2 1 . 3 . . . . . . . . 1 Worker 4 | . . . . 4 . . . . . . . . . Tunneler 3 | 2 . . . . . . . 1 . . . . . Hauler 4 | . 1 . . 3 . . . . . . . . . Recycler 3 | 1 . . . 2 . . . . . . . . . Watcher 3 | . . . . 3 . . . . . . . . . Swarmer 1 | . . . . . . . . . . . . . 1 Grunt 4 | . 4 . . . . . . . . . . . . Sentry 1 | . . 1 . . . . . . . . . . . Programmer 3 | . . . . 3 . . . . . . . . . Decomposer 1 | . . . . . . . . . 1 . . . . Best Kill Streak 4 | 3 4 1 . 4 . . . 1 . . . . 1 Combat Bots Only 4 | . 4 1 . 1 . . . . . . . . 1 Max Kills in Single Turn 2 | 2 1 1 . 1 . . . 1 1 . . . 1 Gunslinging . | . . . . . . . . . . . . . . Exploded . | . . . . . . . . . . . . . . Melee . | . . . . . . . . . . . . . . Uniques/NPCs Destroyed . | . . . . . . . . . . . . . . Combat | -11 -10 -9 -8 -7 -6 -6 -5 -4 -4 -4 -3 -2 -2 -------- Run | Scr Mat Mat Mat Fac Fac DSF Fac Fac Upp Upp Res Res Tes Damage Taken 5887 | . 762 32 44 643 . 421 213 197 260 24 820 693 1778 Core 2471 | . 217 17 . 221 . 133 116 42 64 . 174 521 966 Absorbed by Shields . | . . . . . . . . . . . . . . Redirected to Shielding 109 | . . . . 48 . 39 22 . . . . . . Core Remaining (%) 80 | 100 13 95 100 68 . 84 88 . . 90 86 . . Volleys Fired 121 | 2 27 3 2 54 . 3 3 13 9 . . . 5 Largest 2 | 2 2 1 1 2 . 1 1 1 1 . . . 1 Hottest 100 | 60 65 65 61 86 . 25 61 100 61 . . . 81 Shots Fired 160 | 4 41 3 2 77 . 3 3 13 9 . . . 5 Gun 151 | 4 41 3 2 75 . 3 3 7 8 . . . 5 Cannon . | . . . . . . . . . . . . . . Launcher . | . . . . . . . . . . . . . . Special 9 | . . . . 2 . . . 6 1 . . . . Kinetic 70 | 2 20 . . 45 . 3 . . . . . . . Thermal 70 | . 6 3 2 30 . . 3 13 8 . . . 5 Explosive . | . . . . . . . . . . . . . . Electromagnetic 17 | 2 15 . . . . . . . . . . . . Robot Hit Streak 11 | 2 8 7 . 11 . . 3 6 1 . . . 3 Robot Miss Streak 6 | . 2 4 4 6 . . 2 1 1 . . . 1 Penetration Max . | . . . . . . . . . . . . . . Secondary Targets . | . . . . . . . . . . . . . . Shots Hit Robots 114 | 2 24 3 . 73 . . 1 6 1 . . . 4 Core Hits 52 | 3 12 6 . 23 . . 1 2 1 . . . 4 Critical Kills . | . . . . . . . . . . . . . . Critical Parts Destroyed . | . . . . . . . . . . . . . . Critical Strikes 7 | . 1 . . 3 . . . 2 1 . . . . Burn 7 | . 1 . . 3 . . . 2 1 . . . . Melee Attacks 17 | . . . . 17 . . . . . . . . . Impact . | . . . . . . . . . . . . . . Slashing . | . . . . . . . . . . . . . . Piercing . | . . . . . . . . . . . . . . Sneak Attacks 16 | . . . . 16 . . . . . . . . . Combat Hostiles 10 | . . . . 10 . . . . . . . . . Follow-up Attacks . | . . . . . . . . . . . . . . Damage Inflicted 1661 | 41 305 34 . 1023 . . 16 101 16 . . . 125 Guns 1633 | 41 305 34 . 1023 . . 16 101 16 . . . 97 Cannons . | . . . . . . . . . . . . . . Explosions . | . . . . . . . . . . . . . . Melee . | . . . . . . . . . . . . . . Ramming 28 | . . . . . . . . . . . . . 28 Kinetic 725 | 11 176 . . 538 . . . . . . . . . Thermal 785 | . 36 34 . 485 . . 16 101 16 . . . 97 Explosive . | . . . . . . . . . . . . . . Electromagnetic 123 | 30 93 . . . . . . . . . . . . Impact . | . . . . . . . . . . . . . . Slashing . | . . . . . . . . . . . . . . Piercing . | . . . . . . . . . . . . . . Highest Corruption 12 | . 1 . . 4 . . . . . . 3 . 12 Average Corruption 3 | . 1 . . 3 . . . . . . 2 . 3 Corruption Purged . | . . . . . . . . . . . . . . Corruption Blocked . | . . . . . . . . . . . . . . Effects 16 | . . . . 14 . . . . . . . . 2 Message Errors 6 | . . . . 5 . . . . . . . . 1 Matter Fused 4 | . . . . 4 . . . . . . . . . Heat Flow Errors 2 | . . . . 2 . . . . . . . . . Energy Discharges 2 | . . . . 2 . . . . . . . . . Data Loss (minor) 1 | . . . . 1 . . . . . . . . . Misdirections 1 | . . . . . . . . . . . . . 1 Overload Shots . | . . . . . . . . . . . . . . Overflow Damage . | . . . . . . . . . . . . . . Projectiles . | . . . . . . . . . . . . . . Explosions . | . . . . . . . . . . . . . . Melee . | . . . . . . . . . . . . . . Knockbacks . | . . . . . . . . . . . . . . Impact . | . . . . . . . . . . . . . . Kinetic . | . . . . . . . . . . . . . . Secondary . | . . . . . . . . . . . . . . Self-Inflicted Damage 10 | . . . . . . . . . . . . . 10 Shots . | . . . . . . . . . . . . . . Rammed 5 | . . . . . . . . . . . . . 5 Targets Rammed 14 | . . . . . . . . . . . . . 14 Kicked 9 | . . . . . . . . . . . . . 9 Crushed . | . . . . . . . . . . . . . . Highest Temperature 305 | . 229 96 36 288 . . 15 126 305 . 30 . 64 Average Temperature 86 | . 116 52 18 90 . . 10 47 100 . 19 . 37 Received Heat Transfer 822 | . 420 9 18 108 . . . 39 30 . 162 18 18 Effects 3 | . 2 . . 1 . . . . . . . . . Interference 3 | . 2 . . 1 . . . . . . . . . Siege Activations . | . . . . . . . . . . . . . . Robots Corrupted . | . . . . . . . . . . . . . . Combat Hostiles . | . . . . . . . . . . . . . . Parts Fried 1 | 1 . . . . . . . . . . . . . Impact Corruptions . | . . . . . . . . . . . . . . Robots Melted . | . . . . . . . . . . . . . . Combat Hostiles . | . . . . . . . . . . . . . . Parts Melted . | . . . . . . . . . . . . . . Heat Transferred 2043 | . 148 45 . 1184 . . 37 370 111 . . . 148 Parts Sabotaged . | . . . . . . . . . . . . . . Parts Stolen . | . . . . . . . . . . . . . . Parts Stripped . | . . . . . . . . . . . . . . Power Chain Reactions . | . . . . . . . . . . . . . . Missiles Intercepted 1 | . . . . . . . 1 . . . . . . Alert | -11 -10 -9 -8 -7 -6 -6 -5 -4 -4 -4 -3 -2 -2 ------- Run | Scr Mat Mat Mat Fac Fac DSF Fac Fac Upp Upp Res Res Tes Peak Influence 594 | 15 156 80 128 191 27 33 149 317 . . 594 326 339 Initial 311 | . 9 5 33 58 27 18 . 72 . . 224 311 160 Average 129 | 5 61 43 52 84 27 15 12 159 . . 423 307 211 Maximum Alert Level 2 | . . . . . . . . 1 . . 2 1 1 Low Security (%) 79 | 100 100 100 100 100 100 100 100 66 . . . . 64 Level 1 14 | . . . . . . . . 33 . . 26 100 35 Level 2 5 | . . . . . . . . . . . 73 . . Level 3 . | . . . . . . . . . . . . . . Level 4 . | . . . . . . . . . . . . . . Level 5 . | . . . . . . . . . . . . . . High Security . | . . . . . . . . . . . . . . Max Security . | . . . . . . . . . . . . . . Squads Dispatched 16 | . 1 . 1 5 . 2 1 2 . . 1 1 2 Investigation 3 | . . . . 2 . . . . . . . . 1 Extermination 5 | . . . . 3 . . . 1 . . . . 1 Reinforcement 8 | . 1 . 1 . . 2 1 1 . . 1 1 . Assault . | . . . . . . . . . . . . . . Garrison . | . . . . . . . . . . . . . . Intercept . | . . . . . . . . . . . . . . Searches Triggered . | . . . . . . . . . . . . . . Construction Impeded . | . . . . . . . . . . . . . . Haulers Reinforced . | . . . . . . . . . . . . . . Active Scanning Responses . | . . . . . . . . . . . . . . Cargo Convoy Interrupts . | . . . . . . . . . . . . . . Stealth | -11 -10 -9 -8 -7 -6 -6 -5 -4 -4 -4 -3 -2 -2 --------- Run | Scr Mat Mat Mat Fac Fac DSF Fac Fac Upp Upp Res Res Tes Distress Signals 5 | . 2 . 1 1 . . . . . . . . 1 Communications Jammed 8 | . . . . . . . . 2 . . 6 . . Distress Signals 8 | . . . . . . . . 2 . . 6 . . Times Spotted 155 | . 10 1 12 14 . 9 11 27 18 1 27 6 19 Peak Tracking Total 14 | . 6 . 10 4 . 9 10 7 12 1 11 7 14 Tactical Retreats 30 | . 2 . 1 1 . . 2 9 5 . 7 . 3 Traps | -11 -10 -9 -8 -7 -6 -6 -5 -4 -4 -4 -3 -2 -2 ------- Run | Scr Mat Mat Mat Fac Fac DSF Fac Fac Upp Upp Res Res Tes Traps Triggered 12 | . 2 . . 4 . . 1 1 . . 3 . 1 Indirectly . | . . . . . . . . . . . . . . Trap Hack Attempts 28 | . . 28 . . . . . . . . . . . Triggered . | . . . . . . . . . . . . . . Disarmed 7 | . . 1 . . . . . . . . . . 6 Reprogrammed . | . . . . . . . . . . . . . . Reused . | . . . . . . . . . . . . . . Traps Extracted . | . . . . . . . . . . . . . . Installed . | . . . . . . . . . . . . . . Triggered 4 | . . . . . . . . . 4 . . . . Machines | -11 -10 -9 -8 -7 -6 -6 -5 -4 -4 -4 -3 -2 -2 ---------- Run | Scr Mat Mat Mat Fac Fac DSF Fac Fac Upp Upp Res Res Tes Machines Disabled 1 | . . . . . . 1 . . . . . . . Max in Single Turn 1 | . . . . . . 1 . . . . . . . Machines Sabotaged . | . . . . . . . . . . . . . . Garrisons Compromised . | . . . . . . . . . . . . . . Overloaded Fab Kills . | . . . . . . . . . . . . . . Hacking | -11 -10 -9 -8 -7 -6 -6 -5 -4 -4 -4 -3 -2 -2 --------- Run | Scr Mat Mat Mat Fac Fac DSF Fac Fac Upp Upp Res Res Tes Machines Accessed 22 | . 2 1 2 7 1 . 2 1 1 . 2 . 3 Terminals 19 | . 2 1 2 6 1 . 1 1 1 . 1 . 3 Fabricators 2 | . . . . . . . 1 . . . 1 . . Repair Stations . | . . . . . . . . . . . . . . Recycling Units . | . . . . . . . . . . . . . . Scanalyzers . | . . . . . . . . . . . . . . Garrison Access 1 | . . . . 1 . . . . . . . . . Total Hacks 46 | . 7 2 3 13 2 . 2 1 4 . 3 . 9 Successful 22 | . 2 1 1 7 1 . 2 1 4 . 1 . 2 Failed 24 | . 5 1 2 6 1 . . . . . 2 . 7 Catastrophic 4 | . 1 . . 1 . . . . . . . . 2 Database Lockouts . | . . . . . . . . . . . . . . Manual 11 | . 1 . 3 5 . . . . . . . . 2 Terminals 43 | . 7 2 3 12 2 . 1 1 4 . 2 . 9 Fabricators 2 | . . . . . . . 1 . . . 1 . . Repair Stations . | . . . . . . . . . . . . . . Recycling Units . | . . . . . . . . . . . . . . Scanalyzers . | . . . . . . . . . . . . . . Garrison Access 1 | . . . . 1 . . . . . . . . . Terminal Hacks 16 | . 2 1 . 5 1 . 1 1 4 . . . 1 Record 4 | . . . . . . . . . 4 . . . . Part Schematic 1 | . . . . 1 . . . . . . . . . Robot Schematic 1 | . . . . 1 . . . . . . . . . Open DSF 3 | . . . . 2 1 . . . . . . . . Branch Access Points 1 | . 1 . . . . . . . . . . . . Unreport Threat 1 | . . . . . . . . 1 . . . . . Locate Traps 4 | . 1 1 . 1 . . 1 . . . . . . Disarm Traps 1 | . . . . . . . . . . . . . 1 Fabricator Hacks 2 | . . . . . . . 1 . . . 1 . . Load Schematic 1 | . . . . . . . . . . . 1 . . Build 1 | . . . . . . . 1 . . . . . . Repair Station Hacks . | . . . . . . . . . . . . . . Recycling Unit Hacks . | . . . . . . . . . . . . . . Scanalyzer . | . . . . . . . . . . . . . . Garrison Access Hacks 1 | . . . . 1 . . . . . . . . . Unlock Access 1 | . . . . 1 . . . . . . . . . Unauthorized Hacks 3 | . . . 1 1 . . . . . . . . 1 Terminals 3 | . . . 1 1 . . . . . . . . 1 Assimilate 1 | . . . . 1 . . . . . . . . . Botnet 2 | . . . 1 . . . . . . . . . 1 Fabricators . | . . . . . . . . . . . . . . Repair Stations . | . . . . . . . . . . . . . . Recycling Units . | . . . . . . . . . . . . . . Scanalyzers . | . . . . . . . . . . . . . . Garrison Access . | . . . . . . . . . . . . . . Data Cores Recovered . | . . . . . . . . . . . . . . Used . | . . . . . . . . . . . . . . Hacking Detections 16 | . 2 . 2 4 1 . 1 1 1 . 2 . 2 Full Trace Events 4 | . 1 . . 2 . . . . . . . . 1 Feedback Events 2 | . 1 . . 1 . . . . . . . . . Corruption 2 | . 1 . . 1 . . . . . . . . . Feedback Blocked . | . . . . . . . . . . . . . . Robot Schematics Acquired 1 | . . . . 1 . . . . . . . . . Robots Built . | . . . . . . . . . . . . . . Authchips . | . . . . . . . . . . . . . . Time . | . . . . . . . . . . . . . . Total Robot Build Rating . | . . . . . . . . . . . . . . Part Schematics Acquired 1 | . . . . 1 . . . . . . . . . Parts Built 1 | . . . . . . . 1 . . . . . . Authchips 1 | . . . . . . . 1 . . . . . . Time 42 | . . . . . . . 42 . . . . . . Total Part Build Rating 8 | . . . . . . . 8 . . . . . . Parts Repaired . | . . . . . . . . . . . . . . Time . | . . . . . . . . . . . . . . Parts Recycled . | . . . . . . . . . . . . . . Recycled Matter . | . . . . . . . . . . . . . . Retrieved Matter . | . . . . . . . . . . . . . . Retrieved Components . | . . . . . . . . . . . . . . Parts Scanalyzed . | . . . . . . . . . . . . . . Part Schematics Acquired . | . . . . . . . . . . . . . . Parts Damaged . | . . . . . . . . . . . . . . Bothacking | -11 -10 -9 -8 -7 -6 -6 -5 -4 -4 -4 -3 -2 -2 ------------ Run | Scr Mat Mat Mat Fac Fac DSF Fac Fac Upp Upp Res Res Tes Used RIF Installer . | . . . . . . . . . . . . . . Robots Hacked 6 | . . . . 6 . . . . . . . . . Non-combat 6 | . . . . 6 . . . . . . . . . Combat . | . . . . . . . . . . . . . . Robot Hacks Applied 8 | . . . . 8 . . . . . . . . . parse_system 1 | . . . . 1 . . . . . . . . . no_distress 7 | . . . . 7 . . . . . . . . . Relay Couplers Released . | . . . . . . . . . . . . . . Fabnet Peak Effective % . | . . . . . . . . . . . . . . Robots Rewired 1 | . . . . 1 . . . . . . . . . Allies Hacked . | . . . . . . . . . . . . . . Hacks Repelled . | . . . . . . . . . . . . . . Allies | -11 -10 -9 -8 -7 -6 -6 -5 -4 -4 -4 -3 -2 -2 -------- Run | Scr Mat Mat Mat Fac Fac DSF Fac Fac Upp Upp Res Res Tes Total Allies 1 | . . . . 1 . . . . . . . . . Largest Group 1 | . . . . 1 . . . . . . . . . Highest-Rated Group 21 | . . . . 21 . . . . . . . . . Highest-Rated Ally 21 | . . . . 21 . . . . . . . . . Total Orders 2 | . . . . 2 . . . . . . . . . STAY 1 | . . . . 1 . . . . . . . . . FOLLOW 1 | . . . . 1 . . . . . . . . . Ally Attacks 2 | . . . . 2 . . . . . . . . . Total Damage . | . . . . . . . . . . . . . . Kills . | . . . . . . . . . . . . . . Allies Corrupted . | . . . . . . . . . . . . . . Allies Melted . | . . . . . . . . . . . . . . Intel | -11 -10 -9 -8 -7 -6 -6 -5 -4 -4 -4 -3 -2 -2 ------- Run | Scr Mat Mat Mat Fac Fac DSF Fac Fac Upp Upp Res Res Tes Robot Analysis Total . | . . . . . . . . . . . . . . Derelict Logs Recovered 2 | . . . . . . . . . 1 1 . . . Drone Launches . | . . . . . . . . . . . . . . Drone Recoveries . | . . . . . . . . . . . . . . Exploration | -11 -10 -9 -8 -7 -6 -6 -5 -4 -4 -4 -3 -2 -2 ------------- Run | Scr Mat Mat Mat Fac Fac DSF Fac Fac Upp Upp Res Res Tes Turns Passed 3311 | 81 419 111 101 818 1 47 252 670 187 24 241 70 289 Spaces Moved 5650 | 43 421 158 251 1607 3 128 384 980 522 88 476 134 455 Core 487 | 14 1 . . . . . . . . . . 17 455 Treads . | . . . . . . . . . . . . . . Legs 138 | 29 108 . . . . . . . . . 1 . . Wheels . | . . . . . . . . . . . . . . Hover 509 | . 77 . . 334 . . 98 . . . . . . Flight 4516 | . 235 158 251 1273 3 128 286 980 522 88 475 117 . Fastest Speed 25 | 50 32 29 29 26 27 26 30 30 25 27 25 34 50 Average Speed 37 | 122 63 29 29 31 27 27 37 36 26 27 37 36 50 Slowest Speed 250 | 250 200 29 29 111 27 104 60 105 32 27 120 50 50 Overloaded Moves 93 | . . . . . . . . . . . 93 . . Propulsion Burnouts . | . . . . . . . . . . . . . . Robots Hopped 69 | . 2 1 . 33 . 2 3 14 1 . 13 . . Cave-ins Triggered . | . . . . . . . . . . . . . . Exploration Rate (%) 34 | 4 69 17 23 42 . 91 19 25 70 20 22 6 39 Regions Visited 13 Branch Regions 3 Pre-discovered Areas . | . . . . . . . . . . . . . . Known Exits Taken 5 | . . . . 1 1 . 1 1 . 1 . . . Unknown Exits Taken 7 | 1 1 1 1 . . . . . 1 . 1 1 . Scrap Searched 3 | . . . . . . . . . 3 . . . . Spaces Dug . | . . . . . . . . . . . . . . Terrain Destroyed . | . . . . . . . . . . . . . . Melee . | . . . . . . . . . . . . . . Projectile . | . . . . . . . . . . . . . . AOE . | . . . . . . . . . . . . . . Terrain Rammed . | . . . . . . . . . . . . . . Walls Destroyed . | . . . . . . . . . . . . . . Machines Disabled . | . . . . . . . . . . . . . . Actions | -11 -10 -9 -8 -7 -6 -6 -5 -4 -4 -4 -3 -2 -2 --------- Run | Scr Mat Mat Mat Fac Fac DSF Fac Fac Upp Upp Res Res Tes Total 6619 | 64 533 218 275 1815 2 134 487 1254 562 87 524 154 510 Wait 572 | . 44 20 6 100 . . 80 225 25 . 39 18 15 Move 5502 | 42 416 155 250 1541 2 123 377 953 519 87 449 133 455 Hop 66 | . 2 1 . 32 . 2 3 12 1 . 13 . . Pick Up 47 | 10 8 1 2 12 . . 4 6 2 . 2 . . Fast Attach 76 | 7 14 1 5 17 . 3 7 11 1 . 6 2 2 Attach 28 | . 1 3 1 4 . 2 6 2 2 . 4 1 2 Detach 23 | . 2 3 . 6 . 1 3 3 1 . 3 . 1 Swap 27 | 1 3 2 4 12 . . . 2 . . 3 . . Drop 65 | 2 16 1 5 20 . . 4 9 2 . 5 . 1 Fire 121 | 2 27 3 2 54 . 3 3 13 9 . . . 5 Melee 17 | . . . . 17 . . . . . . . . . Ram 5 | . . . . . . . . . . . . . 5 Kick 9 | . . . . . . . . . . . . . 9 Crush . | . . . . . . . . . . . . . . Escape Stasis 33 | . . . . . . . . 18 . . . . 15 Rewire . | . . . . . . . . . . . . . . Trap 28 | . . 28 . . . . . . . . . . . Miscellaneous . | . . . . . . . . . . . . . . Route ------- -11/Scrapyard -10/Materials (discovered 2 exits: *Mat / Min) -9/Materials -8/Materials -7/Factory (discovered 4 exits: *Fac x2 / [*Low] / Gar) -6/Factory -6/DSF -5/Factory -4/Factory -4/Upper Caves -4/Upper Caves -3/Research (discovered 2 exits: *Res / Qua) -2/Research -2/Testing History --------- Turn | Location | Event 26 | -11/Scrapyard | Discovered new exit (range 15) 82 | -11/Scrapyard | Entered Materials 241 | -10/Materials | Core integrity fell below 50% 281 | -10/Materials | Lost 5 parts (2n3w) 324 | -10/Materials | Identified exit to Mines 333 | -10/Materials | Build established: Mutant 413 | -10/Materials | Core integrity fell below 20% 481 | -10/Materials | Discovered new exit (range 11) 501 | -10/Materials | Entered another Materials area 501 | -9/Materials | Evolved 2 slots: Propulsion x1, Utility x1 551 | -9/Materials | Discovered new exit (range 12) 612 | -9/Materials | Entered another Materials area 612 | -8/Materials | Evolved 2 slots: Utility x2 645 | -8/Materials | Discovered new exit (range 16) 713 | -8/Materials | Entered Factory 713 | -7/Factory | Evolved 2 slots: Propulsion x1, Weapon x1 736 | -7/Factory | Identified exit to Garrison 768 | -7/Factory | Discovered new exit (range 15) 769 | -7/Factory | Identified exit to DSF 777 | -7/Factory | Discovered new exit (range 9) 934 | -7/Factory | Lost 3 parts (1p1n1u) 1233 | -7/Factory | Build established: Scout 1521 | -7/Factory | Discovered new exit (range 11) 1530 | -7/Factory | Identified exit to Factory 1531 | -7/Factory | Entered another Factory area 1531 | -6/Factory | Evolved 2 slots: Utility x2 1532 | -6/Factory | Identified exit to DSF 1532 | -6/Factory | Entered DSF 1556 | -6/DSF | Additional patrols routed to DSF 1574 | -6/DSF | Discovered new exit (range 14) 1579 | -6/DSF | Identified exit to Factory 1579 | -6/DSF | Entered Factory 1579 | -5/Factory | Evolved 2 slots: Power x1, Utility x1 1604 | -5/Factory | Lost 6 parts (3n2u1w) 1615 | -5/Factory | Build established: Sprinter 1648 | -5/Factory | Fabricated Antigrav Array (x1) 1825 | -5/Factory | Discovered new exit (range 20) 1830 | -5/Factory | Identified exit to Factory 1831 | -5/Factory | Entered another Factory area 1831 | -4/Factory | Evolved 2 slots: Propulsion x2 1843 | -4/Factory | Lost 3 parts (2u1w) 2132 | -4/Factory | Build established: Mutant 2478 | -4/Factory | Discovered new exit (range 5) 2479 | -4/Factory | Identified exit to Upper Caves 2501 | -4/Factory | Entered Upper Caves 2544 | -4/Upper Caves | Attracted the attention of an 0b10 base 2560 | -4/Upper Caves | Learned 4 Research zone layouts 2567 | -4/Upper Caves | Spotted B-86 Titan 2624 | -4/Upper Caves | Discovered new exit (range 7) 2688 | -4/Upper Caves | Entered another Upper Caves area 2689 | -4/Upper Caves | Identified exit to Research 2692 | -4/Upper Caves | Learned Research stockpile data 2712 | -4/Upper Caves | Entered Research 2712 | -3/Research | Evolved 2 slots: Utility x2 2713 | -3/Research | Identified exit to Quarantine 2760 | -3/Research | Spotted B-86 Titan 2815 | -3/Research | Spotted B-86 Titan 2923 | -3/Research | Discovered new exit (range 13) 2953 | -3/Research | Entered another Research area 2953 | -2/Research | Evolved 2 slots: Utility x2 2968 | -2/Research | Found Prototype Device 2968 | -2/Research | Identified Adv. EM Disruption Field 2982 | -2/Research | Lost 5 parts (2n3u) 3010 | -2/Research | Discovered new exit (range 11) 3014 | -2/Research | Released all parts (9) 3023 | -2/Research | Entered Testing 3045 | -2/Testing | Lost 4 parts (1p2n1u) 3202 | -2/Testing | Spotted PD-2AYMPKOTWQ 3208 | -2/Testing | Spotted Striker 3230 | -2/Testing | Core integrity fell below 50% 3281 | -2/Testing | Core integrity fell below 20% 3281 | -2/Testing | System corruption reached 10% 3312 | -2/Testing | Destroyed by PD-2AYMPKOTWQ with Ragnarok Missile Launcher Last Messages --------------- >>Traps(Disarm) Disarmed 6 Blade Traps. 03239_ Connecting with Terminal... 03257_ S-43 Plague destroyed. 03263_ Wave Gun destroyed. 03264_ Kicked P-80 Master out of the way. 03265_ Acquired 36 matter. 03266_ Kicked S-43 Plague. 03273_ ALERT: Rogue bot located, Programmers report to Testing Zone 7Y. 03273_ Kicked S-43 Plague. 03274_ Kicked S-43 Plague out of the way. 03275_ #B3 Q2FHFKOL FIHX JRQ 03275_ Hdn. Centrium Leg destroyed. 03275_ Slammed into S-43 Plague. 03277_ Slammed into P-80 Master. 03279_ Destabilizing: System corrupted (+2). 03280_ P-80 Master resets P-80 Master, system corruption cleaned. 03307_ U-05 Engineer builds a Wall. 03310_ P-80 Master resets S-43 Plague, system corruption cleaned. 03312_ K-01 Serf collects debris. Map ----- +----------------------------------------------------+ | | | | | | | | | | | | | | | | | | | | | | | | | | | ?????????????????????????????????????????????????? | | ???????????????????????????????######????????????? | | ??????????????????????????????? #????????????? | | ?????????????????????????????? #????????????? | | ############################## #????????????? | | + ! #????????????? | | #########################p # #????????????? | | ?????????????????????# ## s # #????????????? | | ?????????????????????# ## ########????????????? | | ?????????????????????# # ##??????????????????? | | ????????????????????## # ##??????????????????? | | ???????????????????## # # du ##??????????????????? | | ????????## ######### #@ ##??????????????????? | | ????????+ # ##??????????????????? | | ????????+ * # #??????????????????? | | ???????????######### # +??????????????????? | | ???????????????????## #??????????????????? | | ????????????????????# ! #??????????????????? | | ??????????????####??# =% "#??????????????????? | | ############### #??#!!= !k""#??????????????????? | | = #??#!== ""#??????????????????? | | #######+##+#### #??#!== wF""#??????????????????? | | ] #? #######?# """#??????????????????? | | # T ##"""""?# ####???????????????? | | T" # ##"" " # """u ????????????? | | # ##"" # """ ?????????????? | | ##############" / """ #####?????????????? | | ?????????????#"" # """ #??###????????????? | | ?????????????#"""" # """ #? ????????????? | | ?????????????######## """ #?""" ????????????? | | ????????? [ =####### """ # """ #????????? | | ????????+ # """ #????????? | | ????????# ! ! % / #????????? | | ????????# ####### # """ ???????????? | | ?????????????????############ #?????????????????? | | ???????????????? #??# #?????????????????? | | ???????????????""" """"" #??# #?????????????????? | +----------------------------------------------------+ Best States ------------- Heat Dissipation 49 Energy Generation 40 Energy Capacity 310 Matter Stores 424 Matter Capacity 450 Sight Range 20 Robot Scan Range 14 Terrain Scan Density 10 ECM Strength 2 Jamming Range 16 Additional Mass Support 6 Base Temperature (-) 200 EM Shielding 3 Resistance: KI 30 Resistance: TH 25 Propulsion Shielding 66 Point Defense Rating 80 Phase Shifting 10 Evasion (%) 82 Offensive Hacking 10 Authchip Count 1 Trap Extractor Capacity 4 Item Schematics ----------------- Shock Absorption System | -7/Factory | Hacked Robot Schematics ------------------ G-47 Trooper | -7/Factory | Hacked Fabricated ------------ Antigrav Array | x1 | -5/Factory | Preloaded, Authchip Alien Tech Used ----------------- None Achievements -------------- No Explosion For You Challenges ------------ None Game ------ Seed WardroneTitaniumBay Manual? 0 Play Time 02:34:33 Cumulative 124.1 hours Start 2022.04.13 @ 20:16:19 End 2022.04.15 @ 17:07:14 Sessions 5 Manual Loads 0 Difficulty Rogue Special Mode None Game No. 117 Rogue 117 Adventurer 0 Explorer 0 Win Type - Total 0 Types 0/0/0/0/0/0/0/0/0 Lore% 26 Gallery% 54 Achievement% 35 Wizard Run 0 Options --------- ASCII 1 Keyboard 1 Movement Vi Keybinds 0 Fullscreen 2 Font 24/Smallcaps Map View 76x50 Tactical HUD 1 Map Filters NONE Filters NONE Steam 1 RUN: fab141f3-3614-4295-8798-95b3ac4dca56